Department,Entity,Date of Payment,Expense Type,Expense Area,Supplier,Transaction Number,Amount,Description,Supplier Postcode
"Department for Business, Innovation and Skills",UK Shared Business Services Ltd,01/07/2022,Consultancy Services,"Risk, Information & Security Compliance",Risk Evolves Ltd,99648711,420,Consultancy Services,CV31 1XT
"Department for Business, Innovation and Skills",UK Shared Business Services Ltd,01/07/2022,Consultancy Services,"Risk, Information & Security Compliance",Risk Evolves Ltd,99648711,"1,260.00",Consultancy Services,CV31 1XT
"Department for Business, Innovation and Skills",UK Shared Business Services Ltd,01/07/2022,Recruitment Costs,Corporate HR,Agenda Resource Management Ltd,99760755,707.86,Professional Services,HU12 8YJ
"Department for Business, Innovation and Skills",UK Shared Business Services Ltd,01/07/2022,Staff Training,HRSD Recoverables,ASK Europe PLC,99760903,840,Training,MK43 0BT
"Department for Business, Innovation and Skills",UK Shared Business Services Ltd,01/07/2022,Staff Training,HRSD Recoverables,ASK Europe PLC,99762058,840,Training,MK43 0BT
"Department for Business, Innovation and Skills",UK Shared Business Services Ltd,01/07/2022,Staff Training,HRSD Recoverables,ASK Europe PLC,99762061,840,Training,MK43 0BT
"Department for Business, Innovation and Skills",UK Shared Business Services Ltd,04/07/2022,Agency Staff,Corporate Finance,C and D Group Ltd t/a Thrive Group,99751047,"1,497.80",SR 11138346 VAT ONLY INVOICE,SN3 4UQ
"Department for Business, Innovation and Skills",UK Shared Business Services Ltd,04/07/2022,T&S - Other Charges,HR Ops & Specialists,Unspecified,99760133,65,Home-working Equipment,HOME
"Department for Business, Innovation and Skills",UK Shared Business Services Ltd,04/07/2022,Contract Staff,SHARP,Alexander Mann Solutions Ltd,99761322,"3,387.66",Recruitment Services,EC2N 3AQ
"Department for Business, Innovation and Skills",UK Shared Business Services Ltd,04/07/2022,Contract Staff,Corporate Commercial,Alexander Mann Solutions Ltd,99761336,"2,521.25",Recruitment Services,EC2N 3AQ
"Department for Business, Innovation and Skills",UK Shared Business Services Ltd,04/07/2022,Contract Staff,People,Alexander Mann Solutions Ltd,99761337,"3,848.22",Recruitment Services,EC2N 3AQ
"Department for Business, Innovation and Skills",UK Shared Business Services Ltd,04/07/2022,Computing Consumables,D&I Management,Unspecified,99761345,-28.26,GPC_Computer Consumables,HOME
"Department for Business, Innovation and Skills",UK Shared Business Services Ltd,04/07/2022,GPC Clearing - SSC,Balance Sheet,Unspecified,99761345,28.26,Unspecified,HOME
"Department for Business, Innovation and Skills",UK Shared Business Services Ltd,04/07/2022,UK - Professional Memberships & Subscriptions,Resourcing,Unspecified,99761346,195,Professional Subscriptions (Actuals),HOME
"Department for Business, Innovation and Skills",UK Shared Business Services Ltd,04/07/2022,UK - Professional Memberships & Subscriptions,Executive Function,Unspecified,99761348,221,Professional Subscriptions (Actuals),HOME
"Department for Business, Innovation and Skills",UK Shared Business Services Ltd,04/07/2022,Recruitment Costs,Corporate HR,Everwell Occupational Health Ltd,99762175,252,Professional Services,CW11 3AE
"Department for Business, Innovation and Skills",UK Shared Business Services Ltd,05/07/2022,IT Cloud Services,Production Services,FlyForm Ltd,99738691,"4,999.20",Computing Software,CF10 3AG
"Department for Business, Innovation and Skills",UK Shared Business Services Ltd,05/07/2022,T&S - Other Charges,D&I Operations,Unspecified,99762668,80,Miscellaneous (Actuals),HOME
"Department for Business, Innovation and Skills",UK Shared Business Services Ltd,06/07/2022,Recruitment Costs,D&I Management,Michael Page International Recruitment Limited T/A Page Personnel,99762380,"3,600.00",Recruitment Services,SL1 1QP
"Department for Business, Innovation and Skills",UK Shared Business Services Ltd,06/07/2022,Computer Software,SIAM,Softcat plc,99763344,353.64,Computing Software,SL7 1LW
"Department for Business, Innovation and Skills",UK Shared Business Services Ltd,06/07/2022,Computer Software,SIAM,Softcat plc,99763354,"1,751.03",Computing Software,SL7 1LW
"Department for Business, Innovation and Skills",UK Shared Business Services Ltd,06/07/2022,Staff Training,HRSD Recoverables,ASK Europe PLC,99763384,504,Training,MK43 0BT
"Department for Business, Innovation and Skills",UK Shared Business Services Ltd,06/07/2022,HR Assignment Default Expense,Contact Centres,Enterprise Rent-A-Car UK Ltd,99764327,117.52,,GL2 5DA
"Department for Business, Innovation and Skills",UK Shared Business Services Ltd,06/07/2022,HR Assignment Default Expense,Contact Centres,Enterprise Rent-A-Car UK Ltd,99764327,23.5,SR 11176464 CAR HIRE,GL2 5DA
"Department for Business, Innovation and Skills",UK Shared Business Services Ltd,06/07/2022,T&S - Parking Tolls Congestion Charges,Executive Function,Unspecified,99764499,8.6,"Parking, Tolls, Congestion Charge",HOME
"Department for Business, Innovation and Skills",UK Shared Business Services Ltd,06/07/2022,T&S - Parking Tolls Congestion Charges,Finance Operations 2,Unspecified,99764500,18,"Parking, Tolls, Congestion Charge",HOME
"Department for Business, Innovation and Skills",UK Shared Business Services Ltd,06/07/2022,T&S - Subsistence,Finance Operations 2,Unspecified,99764500,94.96,Evening Meal (Actuals),HOME
"Department for Business, Innovation and Skills",UK Shared Business Services Ltd,07/07/2022,Computer Hardware,DR Upgrade,CDW Ltd,99756594,"14,040.72",Computer Consumables,SWAREHOUSEONLY
"Department for Business, Innovation and Skills",UK Shared Business Services Ltd,07/07/2022,Computer Hardware,DR Upgrade,CDW Ltd,99756594,"1,325.18",Computer Consumables,SWAREHOUSEONLY
"Department for Business, Innovation and Skills",UK Shared Business Services Ltd,07/07/2022,Computer Hardware,DR Upgrade,CDW Ltd,99756594,"1,382.02",Computer Consumables,SWAREHOUSEONLY
"Department for Business, Innovation and Skills",UK Shared Business Services Ltd,07/07/2022,Computer Hardware,Network Improvements,CDW Ltd,99756598,"1,914.98",Computer Consumables,SWAREHOUSEONLY
"Department for Business, Innovation and Skills",UK Shared Business Services Ltd,07/07/2022,Computer Hardware,Network Improvements,CDW Ltd,99756598,"1,535.09",Computer Consumables,SWAREHOUSEONLY
"Department for Business, Innovation and Skills",UK Shared Business Services Ltd,07/07/2022,Computer Hardware,Network Improvements,CDW Ltd,99756598,"1,568.74",Computer Consumables,SWAREHOUSEONLY
"Department for Business, Innovation and Skills",UK Shared Business Services Ltd,07/07/2022,Computer Hardware,Network Improvements,CDW Ltd,99756598,485.06,Computer Consumables,SWAREHOUSEONLY
"Department for Business, Innovation and Skills",UK Shared Business Services Ltd,07/07/2022,Computer Hardware,DR Upgrade,CDW Ltd,99756602,"4,480.42",Computer Consumables,SWAREHOUSEONLY
"Department for Business, Innovation and Skills",UK Shared Business Services Ltd,07/07/2022,Computer Hardware,DR Upgrade,CDW Ltd,99756602,"1,914.96",Computer Consumables,SWAREHOUSEONLY
"Department for Business, Innovation and Skills",UK Shared Business Services Ltd,07/07/2022,Computer Hardware,DR Upgrade,CDW Ltd,99756602,"1,535.09",Computer Consumables,SWAREHOUSEONLY
"Department for Business, Innovation and Skills",UK Shared Business Services Ltd,07/07/2022,Computer Hardware,DR Upgrade,CDW Ltd,99756602,485.06,Computer Consumables,SWAREHOUSEONLY
"Department for Business, Innovation and Skills",UK Shared Business Services Ltd,07/07/2022,Computer Hardware,DR Upgrade,CDW Ltd,99756602,"6,934.70",Computer Consumables,SWAREHOUSEONLY
"Department for Business, Innovation and Skills",UK Shared Business Services Ltd,07/07/2022,Computer Hardware,DR Upgrade,CDW Ltd,99756602,"1,212.19",Computer Consumables,SWAREHOUSEONLY
"Department for Business, Innovation and Skills",UK Shared Business Services Ltd,07/07/2022,Computer Hardware,DR Upgrade,CDW Ltd,99756749,"1,568.74",Computer Consumables,SWAREHOUSEONLY
"Department for Business, Innovation and Skills",UK Shared Business Services Ltd,07/07/2022,Computer Hardware,DR Upgrade,CDW Ltd,99756749,"12,898.50",Computer Consumables,SWAREHOUSEONLY
"Department for Business, Innovation and Skills",UK Shared Business Services Ltd,07/07/2022,Computer Hardware,DR Upgrade,CDW Ltd,99756749,636.74,Computer Consumables,SWAREHOUSEONLY
"Department for Business, Innovation and Skills",UK Shared Business Services Ltd,07/07/2022,Computer Hardware,DR Upgrade,CDW Ltd,99756749,"8,203.56",Computer Consumables,SWAREHOUSEONLY
"Department for Business, Innovation and Skills",UK Shared Business Services Ltd,07/07/2022,Computer Hardware,DR Upgrade,CDW Ltd,99756749,"11,929.88",Computer Consumables,SWAREHOUSEONLY
"Department for Business, Innovation and Skills",UK Shared Business Services Ltd,07/07/2022,Contract Staff,Professional Services,Hays Specialist Recruitment Ltd,99762072,"9,147.71",Recruitment Services,KT3 4QF
"Department for Business, Innovation and Skills",UK Shared Business Services Ltd,07/07/2022,Contract Staff,Professional Services,Hays Specialist Recruitment Ltd,99762075,"12,932.96",Recruitment Services,KT3 4QF
"Department for Business, Innovation and Skills",UK Shared Business Services Ltd,07/07/2022,Hardware/Software Maintenance,Production Services,Bytes Software Services Ltd,99763470,864.84,Computer Consumables,KT22 7TW
"Department for Business, Innovation and Skills",UK Shared Business Services Ltd,07/07/2022,Hardware/Software Maintenance,Production Services,Bytes Software Services Ltd,99763470,356.28,Computer Consumables,KT22 7TW
"Department for Business, Innovation and Skills",UK Shared Business Services Ltd,07/07/2022,Hardware/Software Maintenance,Production Services,Bytes Software Services Ltd,99763470,"1,040.16",Computer Consumables,KT22 7TW
"Department for Business, Innovation and Skills",UK Shared Business Services Ltd,07/07/2022,Hardware/Software Maintenance,Production Services,Bytes Software Services Ltd,99763470,"1,141.34",Computer Consumables,KT22 7TW
"Department for Business, Innovation and Skills",UK Shared Business Services Ltd,07/07/2022,Hardware/Software Maintenance,Production Services,Bytes Software Services Ltd,99763470,762.34,Computer Consumables,KT22 7TW
"Department for Business, Innovation and Skills",UK Shared Business Services Ltd,07/07/2022,Data Storage & Recovery,Finance Operations 1,The Maltings Document Storage Solutions Ltd,99763508,332.59,Computing Services,CF24 5EZ
"Department for Business, Innovation and Skills",UK Shared Business Services Ltd,07/07/2022,Contract Staff,Professional Services,Hays Specialist Recruitment Ltd,99764305,"12,068.63",Recruitment Services,KT3 4QF
"Department for Business, Innovation and Skills",UK Shared Business Services Ltd,07/07/2022,Contract Staff,Professional Services,Hays Specialist Recruitment Ltd,99764309,"10,812.00",Recruitment Services,KT3 4QF
"Department for Business, Innovation and Skills",UK Shared Business Services Ltd,07/07/2022,Nursery Deductions,Balance Sheet,EDENRED (UK GROUP) LTD,99764671,"1,637.50",SR 11182040 CHILDCARE VOUCHERS JULY 2022,SW1V 2RS
"Department for Business, Innovation and Skills",UK Shared Business Services Ltd,08/07/2022,Contract Staff,Production Services,People Source Consulting Ltd,99750143,"8,112.00",Recruitment Services,BS1 6BA
"Department for Business, Innovation and Skills",UK Shared Business Services Ltd,08/07/2022,Health & Safety (inc. Medicals & Opticians),People,ACAS,99754149,255,Training,LS1 4AP
"Department for Business, Innovation and Skills",UK Shared Business Services Ltd,08/07/2022,Computer Software Licences,Production Services,Softcat plc,99763363,"86,637.60",Computer Consumables,SL7 1LW
"Department for Business, Innovation and Skills",UK Shared Business Services Ltd,08/07/2022,Computer Software Licences,Production Services,Softcat plc,99763363,"1,298.23",Computer Consumables,SL7 1LW
"Department for Business, Innovation and Skills",UK Shared Business Services Ltd,08/07/2022,Computer Software Licences,Production Services,Softcat plc,99763363,"134,200.80",Computer Consumables,SL7 1LW
"Department for Business, Innovation and Skills",UK Shared Business Services Ltd,08/07/2022,Computer Software Licences,Production Services,Softcat plc,99763363,"84,602.88",Computer Consumables,SL7 1LW
"Department for Business, Innovation and Skills",UK Shared Business Services Ltd,08/07/2022,Computer Software Licences,Production Services,Softcat plc,99763363,"20,548.56",Computer Consumables,SL7 1LW
"Department for Business, Innovation and Skills",UK Shared Business Services Ltd,08/07/2022,Legal & Professional Services,SHARP,DAC Beachcroft LLP,99765044,650.64,Professional Services,BS1 9HS
"Department for Business, Innovation and Skills",UK Shared Business Services Ltd,08/07/2022,Mobile Phone Costs,Production Services,Telefonica UK Ltd (O2),99765114,"2,318.12",SR 11180532 CALL CHARGES,SMARTFORM
"Department for Business, Innovation and Skills",UK Shared Business Services Ltd,08/07/2022,UK - Professional Memberships & Subscriptions,People,Unspecified,99765239,168,Professional Subscriptions (Actuals),HOME
"Department for Business, Innovation and Skills",UK Shared Business Services Ltd,11/07/2022,Recruitment Costs,People,Onefix Recruitment Ltd,99757963,720,Recruitment Services,PO3 5EJ
"Department for Business, Innovation and Skills",UK Shared Business Services Ltd,11/07/2022,Recruitment Costs,People,Onefix Recruitment Ltd,99757966,720,Recruitment Services,PO3 5EJ
"Department for Business, Innovation and Skills",UK Shared Business Services Ltd,11/07/2022,Recruitment Costs,People,Onefix Recruitment Ltd,99757968,658.8,Recruitment Services,PO3 5EJ
"Department for Business, Innovation and Skills",UK Shared Business Services Ltd,11/07/2022,Printing & Stationery,Executive Function,Banner Group Ltd,99763667,17.78,Office Supplies,SWAREHOUSEONLY
"Department for Business, Innovation and Skills",UK Shared Business Services Ltd,11/07/2022,Printing & Stationery,Executive Function,Banner Group Ltd,99763667,17.84,Office Supplies,SWAREHOUSEONLY
"Department for Business, Innovation and Skills",UK Shared Business Services Ltd,11/07/2022,Printing & Stationery,Executive Function,Banner Group Ltd,99763667,10.27,Office Supplies,SWAREHOUSEONLY
"Department for Business, Innovation and Skills",UK Shared Business Services Ltd,11/07/2022,Printing & Stationery,Executive Function,Banner Group Ltd,99763667,1.68,Office Supplies,SWAREHOUSEONLY
"Department for Business, Innovation and Skills",UK Shared Business Services Ltd,11/07/2022,Printing & Stationery,Executive Function,Banner Group Ltd,99763667,32.98,Office Supplies,SWAREHOUSEONLY
"Department for Business, Innovation and Skills",UK Shared Business Services Ltd,11/07/2022,Agency Staff,Corporate Finance,C and D Group Ltd t/a Thrive Group,99765517,923.34,Recruitment Services,SN3 4UQ
"Department for Business, Innovation and Skills",UK Shared Business Services Ltd,11/07/2022,Agency Staff,Corporate Finance,C and D Group Ltd t/a Thrive Group,99765518,920.86,Recruitment Services,SN3 4UQ
"Department for Business, Innovation and Skills",UK Shared Business Services Ltd,11/07/2022,Conferences & Seminars,Corporate HR,Unspecified,99765668,110,Conference/Course Fees (Actuals),HOME
"Department for Business, Innovation and Skills",UK Shared Business Services Ltd,11/07/2022,T&S - Subsistence,Accounting,Unspecified,99765669,13.3,Evening Meal (Actuals),HOME
"Department for Business, Innovation and Skills",UK Shared Business Services Ltd,11/07/2022,UK - Professional Memberships & Subscriptions,Contact Centres,Unspecified,99765670,123,Professional Subscriptions (Actuals),HOME
"Department for Business, Innovation and Skills",UK Shared Business Services Ltd,12/07/2022,3rd party IT Services,Process Automation,Magia CX UK Ltd,99434848,"31,482.00",DDaT20176 Second Phase Implementation and 'Call off' for support services for Oracle Policy Automation,SW1E 5BY
"Department for Business, Innovation and Skills",UK Shared Business Services Ltd,12/07/2022,Health & Safety (inc. Medicals & Opticians),Facilities,AM Health & Safety Ltd,99739012,276,Professional Services,SN5 6BD
"Department for Business, Innovation and Skills",UK Shared Business Services Ltd,12/07/2022,Recruitment Costs,People,Onefix Recruitment Ltd,99757956,360,Recruitment Services,PO3 5EJ
"Department for Business, Innovation and Skills",UK Shared Business Services Ltd,12/07/2022,Recruitment Costs,People,Onefix Recruitment Ltd,99760892,360,Recruitment Services,PO3 5EJ
"Department for Business, Innovation and Skills",UK Shared Business Services Ltd,12/07/2022,Recruitment Costs,People,Onefix Recruitment Ltd,99760896,360,Recruitment Services,PO3 5EJ
"Department for Business, Innovation and Skills",UK Shared Business Services Ltd,12/07/2022,Recruitment Costs,People,Onefix Recruitment Ltd,99760897,360,Recruitment Services,PO3 5EJ
"Department for Business, Innovation and Skills",UK Shared Business Services Ltd,12/07/2022,Recruitment Costs,People,Onefix Recruitment Ltd,99760899,360,Recruitment Services,PO3 5EJ
"Department for Business, Innovation and Skills",UK Shared Business Services Ltd,12/07/2022,Recruitment Costs,People,Onefix Recruitment Ltd,99760902,360,Recruitment Services,PO3 5EJ
"Department for Business, Innovation and Skills",UK Shared Business Services Ltd,12/07/2022,Health & Safety (inc. Medicals & Opticians),Facilities,AM Health & Safety Ltd,99764779,63,Professional Services,SN5 6BD
"Department for Business, Innovation and Skills",UK Shared Business Services Ltd,12/07/2022,Consultancy Services,Production Services,Premiertec Consulting Ltd t/a Claremont,99765122,"43,711.88","Consultancy and Professional Services to develop two key work areas around API re-development and re-use, and automation of features connected to the primary and sub-processes associated with the SML process. Also included: BAU, CIs and CRs",NE1 3DY
"Department for Business, Innovation and Skills",UK Shared Business Services Ltd,12/07/2022,Printing & Stationery,Executive Function,Banner Group Ltd,99765417,1.87,Office Supplies,SWAREHOUSEONLY
"Department for Business, Innovation and Skills",UK Shared Business Services Ltd,12/07/2022,Hardware/Software Maintenance,Production Services,KTSL Ltd,99765473,658.13,Computer Consumables,SN13 0ZQ
"Department for Business, Innovation and Skills",UK Shared Business Services Ltd,12/07/2022,Hardware/Software Maintenance,Production Services,KTSL Ltd,99765473,658.13,Computer Consumables,SN13 0ZQ
"Department for Business, Innovation and Skills",UK Shared Business Services Ltd,12/07/2022,Consultancy Services,Interfaces & API Mgmt,Software AG (UK) Ltd,99766630,"9,567.24",Computer Consumables,DE24 8BY
"Department for Business, Innovation and Skills",UK Shared Business Services Ltd,12/07/2022,Consultancy Services,Interfaces & API Mgmt,Software AG (UK) Ltd,99766632,878.4,Computer Consumables,DE24 8BY
"Department for Business, Innovation and Skills",UK Shared Business Services Ltd,12/07/2022,Contract Staff,Corporate HR,Alexander Mann Solutions Ltd,99767092,"7,560.72",Recruitment Services,EC2N 3AQ
"Department for Business, Innovation and Skills",UK Shared Business Services Ltd,12/07/2022,Contract Staff,Production Services,Alexander Mann Solutions Ltd,99767093,"2,648.52",Recruitment Services,EC2N 3AQ
"Department for Business, Innovation and Skills",UK Shared Business Services Ltd,12/07/2022,Staff Training,HRSD Recoverables,ASK Europe PLC,99767771,504,Training,MK43 0BT
"Department for Business, Innovation and Skills",UK Shared Business Services Ltd,12/07/2022,Staff Training,HRSD Recoverables,ASK Europe PLC,99767772,840,Training,MK43 0BT
"Department for Business, Innovation and Skills",UK Shared Business Services Ltd,12/07/2022,Staff Training,HRSD Recoverables,ASK Europe PLC,99767773,504,Training,MK43 0BT
"Department for Business, Innovation and Skills",UK Shared Business Services Ltd,12/07/2022,Other Staff Benefits,People,Amazon EU SARL,99767833,325,ZZ-Employee Benefits,EC2A 2FA
"Department for Business, Innovation and Skills",UK Shared Business Services Ltd,12/07/2022,Contract Staff,SHARP,Alexander Mann Solutions Ltd,99767988,"3,387.66",Recruitment Services,EC2N 3AQ
"Department for Business, Innovation and Skills",UK Shared Business Services Ltd,12/07/2022,Contract Staff,Project Office,Alexander Mann Solutions Ltd,99768000,"7,298.28",Recruitment Services,EC2N 3AQ
"Department for Business, Innovation and Skills",UK Shared Business Services Ltd,12/07/2022,Contract Staff,People,Alexander Mann Solutions Ltd,99768025,"3,078.58",Recruitment Services,EC2N 3AQ
"Department for Business, Innovation and Skills",UK Shared Business Services Ltd,12/07/2022,Contract Staff,Corporate Commercial,Alexander Mann Solutions Ltd,99768027,"2,206.09",Recruitment Services,EC2N 3AQ
"Department for Business, Innovation and Skills",UK Shared Business Services Ltd,13/07/2022,PAYE Payable Salaries,Balance Sheet,HM Revenue & Customs,99762087,"186,724.07",HMRC monthly deductions for SSC June 2022,3RD PARTY PAYME
"Department for Business, Innovation and Skills",UK Shared Business Services Ltd,13/07/2022,NI Payable Salaries,Balance Sheet,HM Revenue & Customs,99762088,"297,704.88",HMRC monthly deductions for SSC June 2022,3RD PARTY PAYME
"Department for Business, Innovation and Skills",UK Shared Business Services Ltd,13/07/2022,Student Loans,Balance Sheet,HM Revenue & Customs,99762089,"2,734.00",HMRC monthly deductions for SSC June 2022,3RD PARTY PAYME
"Department for Business, Innovation and Skills",UK Shared Business Services Ltd,13/07/2022,Apprenticeship Levy,Corporate HR,HM Revenue & Customs,99762090,"6,591.00",HMRC monthly deductions for SSC June 2022,3RD PARTY PAYME
"Department for Business, Innovation and Skills",UK Shared Business Services Ltd,13/07/2022,Computer Hardware,Production Services,Academia Ltd,99766575,261.96,Audio Visuals,HP2 7DW
"Department for Business, Innovation and Skills",UK Shared Business Services Ltd,13/07/2022,Mobile Phone Costs,Production Services,Telefonica UK Ltd (O2),99767410,"1,504.93",SR 11187058 CALL CHARGES,SMARTFORM
"Department for Business, Innovation and Skills",UK Shared Business Services Ltd,13/07/2022,Contract Staff,Production Services,Alexander Mann Solutions Ltd,99768022,"2,079.18",Recruitment Services,EC2N 3AQ
"Department for Business, Innovation and Skills",UK Shared Business Services Ltd,13/07/2022,T&S - Public Transport,Corporate Finance,Corporate Travel Management (North) Ltd,99768251,0.25,20/06/2022----Rail Fee,BD1 5HQ
"Department for Business, Innovation and Skills",UK Shared Business Services Ltd,13/07/2022,T&S - Public Transport,Corporate Finance,Corporate Travel Management (North) Ltd,99768251,35,20/06/2022--Newport S.wales-Swindon-Rail,BD1 5HQ
"Department for Business, Innovation and Skills",UK Shared Business Services Ltd,13/07/2022,T&S - Accommodation,D&I Management,Corporate Travel Management (North) Ltd,99768251,0.8,13/06/2022----Hotel Fee,BD1 5HQ
"Department for Business, Innovation and Skills",UK Shared Business Services Ltd,13/07/2022,T&S - Accommodation,D&I Management,Corporate Travel Management (North) Ltd,99768251,150,13/06/2022--Jurys Inn Swindon-Bristol-Hotel,BD1 5HQ
"Department for Business, Innovation and Skills",UK Shared Business Services Ltd,13/07/2022,T&S - Accommodation,D&I Management,Corporate Travel Management (North) Ltd,99768251,0.8,20/06/2022----Hotel Fee,BD1 5HQ
"Department for Business, Innovation and Skills",UK Shared Business Services Ltd,13/07/2022,T&S - Accommodation,D&I Management,Corporate Travel Management (North) Ltd,99768251,150,20/06/2022--Jurys Inn Swindon-Bristol-Hotel,BD1 5HQ
"Department for Business, Innovation and Skills",UK Shared Business Services Ltd,13/07/2022,T&S - Accommodation,D&I Management,Corporate Travel Management (North) Ltd,99768251,0.32,Travel & Hotel charges,BD1 5HQ
"Department for Business, Innovation and Skills",UK Shared Business Services Ltd,13/07/2022,T&S - Accommodation,Finance Services,Corporate Travel Management (North) Ltd,99768251,0.8,21/06/2022----Hotel Fee,BD1 5HQ
"Department for Business, Innovation and Skills",UK Shared Business Services Ltd,13/07/2022,T&S - Accommodation,Finance Services,Corporate Travel Management (North) Ltd,99768251,150,21/06/2022--Jurys Inn Swindon-Bristol-Hotel,BD1 5HQ
"Department for Business, Innovation and Skills",UK Shared Business Services Ltd,13/07/2022,T&S - Accommodation,Finance Services,Corporate Travel Management (North) Ltd,99768251,0.8,22/06/2022----Hotel Fee,BD1 5HQ
"Department for Business, Innovation and Skills",UK Shared Business Services Ltd,13/07/2022,T&S - Accommodation,Finance Services,Corporate Travel Management (North) Ltd,99768251,75,22/06/2022--Jurys Inn Swindon-Bristol-Hotel,BD1 5HQ
"Department for Business, Innovation and Skills",UK Shared Business Services Ltd,13/07/2022,T&S - Accommodation,Finance Services,Corporate Travel Management (North) Ltd,99768251,0.32,Travel & Hotel charges,BD1 5HQ
"Department for Business, Innovation and Skills",UK Shared Business Services Ltd,13/07/2022,T&S - Accommodation,HR Ops,Corporate Travel Management (North) Ltd,99768251,0.8,13/06/2022----Hotel Fee,BD1 5HQ
"Department for Business, Innovation and Skills",UK Shared Business Services Ltd,13/07/2022,T&S - Accommodation,HR Ops,Corporate Travel Management (North) Ltd,99768251,91.2,13/06/2022--Premier Inn Stocktonontees Teess-Teesside-Hotel,BD1 5HQ
"Department for Business, Innovation and Skills",UK Shared Business Services Ltd,13/07/2022,T&S - Accommodation,HR Ops,Corporate Travel Management (North) Ltd,99768251,0.8,14/06/2022----Hotel Fee,BD1 5HQ
"Department for Business, Innovation and Skills",UK Shared Business Services Ltd,13/07/2022,T&S - Accommodation,HR Ops,Corporate Travel Management (North) Ltd,99768251,89,14/06/2022--Deanwater Hotel Woodford-Manchester-Hotel,BD1 5HQ
"Department for Business, Innovation and Skills",UK Shared Business Services Ltd,13/07/2022,T&S - Accommodation,HR Ops,Corporate Travel Management (North) Ltd,99768251,0.8,17/07/2022----Hotel Fee,BD1 5HQ
"Department for Business, Innovation and Skills",UK Shared Business Services Ltd,13/07/2022,T&S - Accommodation,HR Ops,Corporate Travel Management (North) Ltd,99768251,0.8,27/06/2022----Hotel Fee,BD1 5HQ
"Department for Business, Innovation and Skills",UK Shared Business Services Ltd,13/07/2022,T&S - Accommodation,HR Ops,Corporate Travel Management (North) Ltd,99768251,78.85,27/06/2022--Manor House At Celtic Manor-Bristol-Hotel,BD1 5HQ
"Department for Business, Innovation and Skills",UK Shared Business Services Ltd,13/07/2022,T&S - Accommodation,HR Ops,Corporate Travel Management (North) Ltd,99768251,0.64,Travel & Hotel charges,BD1 5HQ
"Department for Business, Innovation and Skills",UK Shared Business Services Ltd,13/07/2022,T&S - Accommodation,Service Improvement and Assurance,Corporate Travel Management (North) Ltd,99768251,0.8,16/06/2022----Hotel Fee,BD1 5HQ
"Department for Business, Innovation and Skills",UK Shared Business Services Ltd,13/07/2022,T&S - Accommodation,Service Improvement and Assurance,Corporate Travel Management (North) Ltd,99768251,75,16/06/2022--Jurys Inn Swindon-Bristol-Hotel,BD1 5HQ
"Department for Business, Innovation and Skills",UK Shared Business Services Ltd,13/07/2022,T&S - Accommodation,Service Improvement and Assurance,Corporate Travel Management (North) Ltd,99768251,0.8,16/06/2022----Hotel Fee,BD1 5HQ
"Department for Business, Innovation and Skills",UK Shared Business Services Ltd,13/07/2022,T&S - Accommodation,Service Improvement and Assurance,Corporate Travel Management (North) Ltd,99768251,75,16/06/2022--Jurys Inn Swindon-Bristol-Hotel,BD1 5HQ
"Department for Business, Innovation and Skills",UK Shared Business Services Ltd,13/07/2022,T&S - Accommodation,Service Improvement and Assurance,Corporate Travel Management (North) Ltd,99768251,0.8,16/06/2022----Hotel Fee,BD1 5HQ
"Department for Business, Innovation and Skills",UK Shared Business Services Ltd,13/07/2022,T&S - Accommodation,Service Improvement and Assurance,Corporate Travel Management (North) Ltd,99768251,75,16/06/2022--Jurys Inn Swindon-Bristol-Hotel,BD1 5HQ
"Department for Business, Innovation and Skills",UK Shared Business Services Ltd,13/07/2022,T&S - Accommodation,Service Improvement and Assurance,Corporate Travel Management (North) Ltd,99768251,0.8,16/06/2022----Hotel Fee,BD1 5HQ
"Department for Business, Innovation and Skills",UK Shared Business Services Ltd,13/07/2022,T&S - Accommodation,Service Improvement and Assurance,Corporate Travel Management (North) Ltd,99768251,75,16/06/2022--Jurys Inn Swindon-Bristol-Hotel,BD1 5HQ
"Department for Business, Innovation and Skills",UK Shared Business Services Ltd,13/07/2022,T&S - Accommodation,Service Improvement and Assurance,Corporate Travel Management (North) Ltd,99768251,0.64,Travel & Hotel charges,BD1 5HQ
"Department for Business, Innovation and Skills",UK Shared Business Services Ltd,13/07/2022,T&S - Other Charges,Finance Operations 2,Corporate Travel Management (North) Ltd,99768251,0.25,07/06/2022----Rail Fee,BD1 5HQ
"Department for Business, Innovation and Skills",UK Shared Business Services Ltd,13/07/2022,T&S - Other Charges,Finance Operations 2,Corporate Travel Management (North) Ltd,99768251,35,07/06/2022--Newport S.wales-Swindon-Rail,BD1 5HQ
"Department for Business, Innovation and Skills",UK Shared Business Services Ltd,13/07/2022,T&S - Other Charges,Finance Operations 2,Corporate Travel Management (North) Ltd,99768251,0.25,22/06/2022----Rail Fee,BD1 5HQ
"Department for Business, Innovation and Skills",UK Shared Business Services Ltd,13/07/2022,T&S - Other Charges,Finance Operations 2,Corporate Travel Management (North) Ltd,99768251,35,22/06/2022--Newport S.wales-Swindon-Rail,BD1 5HQ
"Department for Business, Innovation and Skills",UK Shared Business Services Ltd,13/07/2022,T&S - Other Charges,Finance Operations 2,Corporate Travel Management (North) Ltd,99768251,0.25,22/06/2022----Rail Fee,BD1 5HQ
"Department for Business, Innovation and Skills",UK Shared Business Services Ltd,13/07/2022,T&S - Other Charges,Finance Operations 2,Corporate Travel Management (North) Ltd,99768251,33,22/06/2022--Swindon (wilts)-Newport Gwent-Rail,BD1 5HQ
"Department for Business, Innovation and Skills",UK Shared Business Services Ltd,13/07/2022,T&S - Other Charges,Finance Operations 2,Corporate Travel Management (North) Ltd,99768251,0.25,29/06/2022----Rail Fee,BD1 5HQ
"Department for Business, Innovation and Skills",UK Shared Business Services Ltd,13/07/2022,T&S - Other Charges,Finance Operations 2,Corporate Travel Management (North) Ltd,99768251,35,29/06/2022--Newport S.wales-Swindon-Rail,BD1 5HQ
"Department for Business, Innovation and Skills",UK Shared Business Services Ltd,13/07/2022,T&S - Public Transport,Category and Continuous Improvement,Corporate Travel Management (North) Ltd,99768251,0.25,09/06/2022----Rail Fee,BD1 5HQ
"Department for Business, Innovation and Skills",UK Shared Business Services Ltd,13/07/2022,T&S - Public Transport,Category and Continuous Improvement,Corporate Travel Management (North) Ltd,99768251,35,09/06/2022--Newport S.wales-Swindon-Rail,BD1 5HQ
"Department for Business, Innovation and Skills",UK Shared Business Services Ltd,13/07/2022,T&S - Public Transport,Category and Continuous Improvement,Corporate Travel Management (North) Ltd,99768251,0.25,14/06/2022----Rail Fee,BD1 5HQ
"Department for Business, Innovation and Skills",UK Shared Business Services Ltd,13/07/2022,T&S - Public Transport,Category and Continuous Improvement,Corporate Travel Management (North) Ltd,99768251,35,14/06/2022--Newport S.wales-Swindon-Rail,BD1 5HQ
"Department for Business, Innovation and Skills",UK Shared Business Services Ltd,13/07/2022,T&S - Public Transport,Category and Continuous Improvement,Corporate Travel Management (North) Ltd,99768251,0.25,17/06/2022----Rail Fee,BD1 5HQ
"Department for Business, Innovation and Skills",UK Shared Business Services Ltd,13/07/2022,T&S - Public Transport,Category and Continuous Improvement,Corporate Travel Management (North) Ltd,99768251,33,17/06/2022--Newport S.wales-Swindon-Rail,BD1 5HQ
"Department for Business, Innovation and Skills",UK Shared Business Services Ltd,13/07/2022,T&S - Public Transport,Category and Continuous Improvement,Corporate Travel Management (North) Ltd,99768251,0.25,17/06/2022----Rail Fee,BD1 5HQ
"Department for Business, Innovation and Skills",UK Shared Business Services Ltd,13/07/2022,T&S - Public Transport,Category and Continuous Improvement,Corporate Travel Management (North) Ltd,99768251,49.2,17/06/2022--Bridgend-Swindon-Rail,BD1 5HQ
"Department for Business, Innovation and Skills",UK Shared Business Services Ltd,13/07/2022,T&S - Public Transport,Category and Continuous Improvement,Corporate Travel Management (North) Ltd,99768251,0.25,22/06/2022----Rail Fee,BD1 5HQ
"Department for Business, Innovation and Skills",UK Shared Business Services Ltd,13/07/2022,T&S - Public Transport,Category and Continuous Improvement,Corporate Travel Management (North) Ltd,99768251,35,22/06/2022--Newport S.wales-Swindon-Rail,BD1 5HQ
"Department for Business, Innovation and Skills",UK Shared Business Services Ltd,13/07/2022,T&S - Public Transport,Category and Continuous Improvement,Corporate Travel Management (North) Ltd,99768251,0.25,28/06/2022----Rail Fee,BD1 5HQ
"Department for Business, Innovation and Skills",UK Shared Business Services Ltd,13/07/2022,T&S - Public Transport,Category and Continuous Improvement,Corporate Travel Management (North) Ltd,99768251,35,28/06/2022--Newport S.wales-Swindon-Rail,BD1 5HQ
"Department for Business, Innovation and Skills",UK Shared Business Services Ltd,13/07/2022,T&S - Public Transport,Corporate Finance,Corporate Travel Management (North) Ltd,99768251,0.25,15/06/2022----Rail Fee,BD1 5HQ
"Department for Business, Innovation and Skills",UK Shared Business Services Ltd,13/07/2022,T&S - Public Transport,Corporate Finance,Corporate Travel Management (North) Ltd,99768251,35,15/06/2022--Swindon (wilts)-Newport Gwent-Rail,BD1 5HQ
"Department for Business, Innovation and Skills",UK Shared Business Services Ltd,13/07/2022,T&S - Public Transport,Corporate Finance,Corporate Travel Management (North) Ltd,99768251,0.25,15/06/2022----Rail Fee,BD1 5HQ
"Department for Business, Innovation and Skills",UK Shared Business Services Ltd,13/07/2022,T&S - Public Transport,Corporate Finance,Corporate Travel Management (North) Ltd,99768251,58.2,15/06/2022--Swindon (wilts)-Newport Gwent-Rail,BD1 5HQ
"Department for Business, Innovation and Skills",UK Shared Business Services Ltd,13/07/2022,T&S - Public Transport,Corporate Finance,Corporate Travel Management (North) Ltd,99768251,0.25,20/06/2022----Rail Fee,BD1 5HQ
"Department for Business, Innovation and Skills",UK Shared Business Services Ltd,13/07/2022,T&S - Public Transport,Corporate Finance,Corporate Travel Management (North) Ltd,99768251,35,20/06/2022--Newport S.wales-Swindon-Rail,BD1 5HQ
"Department for Business, Innovation and Skills",UK Shared Business Services Ltd,13/07/2022,T&S - Public Transport,Corporate Finance,Corporate Travel Management (North) Ltd,99768251,0.25,20/06/2022----Rail Fee,BD1 5HQ
"Department for Business, Innovation and Skills",UK Shared Business Services Ltd,13/07/2022,T&S - Public Transport,Corporate Finance,Corporate Travel Management (North) Ltd,99768251,35,20/06/2022--Pontypool And New Inn-Swindon-Rail,BD1 5HQ
"Department for Business, Innovation and Skills",UK Shared Business Services Ltd,13/07/2022,T&S - Public Transport,D&I Management,Corporate Travel Management (North) Ltd,99768251,0.25,11/07/2022----Rail Fee,BD1 5HQ
"Department for Business, Innovation and Skills",UK Shared Business Services Ltd,13/07/2022,T&S - Public Transport,D&I Management,Corporate Travel Management (North) Ltd,99768251,204,11/07/2022-Mr Christopher Nicholson-Billingham (cleveland)-Swindon-Rail,BD1 5HQ
"Department for Business, Innovation and Skills",UK Shared Business Services Ltd,13/07/2022,T&S - Public Transport,D&I Management,Corporate Travel Management (North) Ltd,99768251,0.25,13/06/2022----Rail Fee,BD1 5HQ
"Department for Business, Innovation and Skills",UK Shared Business Services Ltd,13/07/2022,T&S - Public Transport,D&I Management,Corporate Travel Management (North) Ltd,99768251,306.6,13/06/2022--Billingham (cleveland)-Swindon-Rail,BD1 5HQ
"Department for Business, Innovation and Skills",UK Shared Business Services Ltd,13/07/2022,T&S - Public Transport,D&I Management,Corporate Travel Management (North) Ltd,99768251,0.25,15/06/2022----Rail Fee,BD1 5HQ
"Department for Business, Innovation and Skills",UK Shared Business Services Ltd,13/07/2022,T&S - Public Transport,D&I Management,Corporate Travel Management (North) Ltd,99768251,35,15/06/2022--Newport S.wales-Swindon-Rail,BD1 5HQ
"Department for Business, Innovation and Skills",UK Shared Business Services Ltd,13/07/2022,T&S - Public Transport,D&I Management,Corporate Travel Management (North) Ltd,99768251,0.25,16/06/2022----Rail Fee,BD1 5HQ
"Department for Business, Innovation and Skills",UK Shared Business Services Ltd,13/07/2022,T&S - Public Transport,D&I Management,Corporate Travel Management (North) Ltd,99768251,35,16/06/2022--Newport S.wales-Swindon-Rail,BD1 5HQ
"Department for Business, Innovation and Skills",UK Shared Business Services Ltd,13/07/2022,T&S - Public Transport,D&I Management,Corporate Travel Management (North) Ltd,99768251,0.25,20/06/2022----Rail Fee,BD1 5HQ
"Department for Business, Innovation and Skills",UK Shared Business Services Ltd,13/07/2022,T&S - Public Transport,D&I Management,Corporate Travel Management (North) Ltd,99768251,306.6,20/06/2022--Billingham (cleveland)-Swindon-Rail,BD1 5HQ
"Department for Business, Innovation and Skills",UK Shared Business Services Ltd,13/07/2022,T&S - Public Transport,D&I Management,Corporate Travel Management (North) Ltd,99768251,0.25,30/06/2022----Rail Fee,BD1 5HQ
"Department for Business, Innovation and Skills",UK Shared Business Services Ltd,13/07/2022,T&S - Public Transport,D&I Management,Corporate Travel Management (North) Ltd,99768251,35,30/06/2022--Newport S.wales-Swindon-Rail,BD1 5HQ
"Department for Business, Innovation and Skills",UK Shared Business Services Ltd,13/07/2022,T&S - Public Transport,DDaT,Corporate Travel Management (North) Ltd,99768251,0.25,17/06/2022----Rail Fee,BD1 5HQ
"Department for Business, Innovation and Skills",UK Shared Business Services Ltd,13/07/2022,T&S - Public Transport,DDaT,Corporate Travel Management (North) Ltd,99768251,40.7,17/06/2022--Cardiff Central-Swindon-Rail,BD1 5HQ
"Department for Business, Innovation and Skills",UK Shared Business Services Ltd,13/07/2022,T&S - Public Transport,ERP Support,Corporate Travel Management (North) Ltd,99768251,0.25,17/06/2022----Rail Fee,BD1 5HQ
"Department for Business, Innovation and Skills",UK Shared Business Services Ltd,13/07/2022,T&S - Public Transport,ERP Support,Corporate Travel Management (North) Ltd,99768251,42.4,17/06/2022--Taffs Well-Swindon-Rail,BD1 5HQ
"Department for Business, Innovation and Skills",UK Shared Business Services Ltd,13/07/2022,T&S - Public Transport,Executive Function,Corporate Travel Management (North) Ltd,99768251,0.25,04/07/2022----Rail Fee,BD1 5HQ
"Department for Business, Innovation and Skills",UK Shared Business Services Ltd,13/07/2022,T&S - Public Transport,Executive Function,Corporate Travel Management (North) Ltd,99768251,78.4,04/07/2022--Andover-London Waterloo-Rail,BD1 5HQ
"Department for Business, Innovation and Skills",UK Shared Business Services Ltd,13/07/2022,T&S - Public Transport,Executive Function,Corporate Travel Management (North) Ltd,99768251,0.25,08/07/2022----Rail Fee,BD1 5HQ
"Department for Business, Innovation and Skills",UK Shared Business Services Ltd,13/07/2022,T&S - Public Transport,Executive Function,Corporate Travel Management (North) Ltd,99768251,15.6,08/07/2022--Swindon (wilts)-Bath Spa-Rail,BD1 5HQ
"Department for Business, Innovation and Skills",UK Shared Business Services Ltd,13/07/2022,T&S - Public Transport,Finance Services,Corporate Travel Management (North) Ltd,99768251,0.13,13/06/2022---Rail Fee,BD1 5HQ
"Department for Business, Innovation and Skills",UK Shared Business Services Ltd,13/07/2022,T&S - Public Transport,Finance Services,Corporate Travel Management (North) Ltd,99768251,101.6,13/06/2022--Swindon (wilts)-Manchester Piccadilly-Rail,BD1 5HQ
"Department for Business, Innovation and Skills",UK Shared Business Services Ltd,13/07/2022,T&S - Public Transport,Finance Services,Corporate Travel Management (North) Ltd,99768251,0.12,13/06/2022----Rail Fee,BD1 5HQ
"Department for Business, Innovation and Skills",UK Shared Business Services Ltd,13/07/2022,T&S - Public Transport,Finance Services,Corporate Travel Management (North) Ltd,99768251,101.6,13/06/2022--Swindon (wilts)-Manchester Piccadilly-Rail,BD1 5HQ
"Department for Business, Innovation and Skills",UK Shared Business Services Ltd,13/07/2022,T&S - Public Transport,Operational Purchasing and Functional Support,Corporate Travel Management (North) Ltd,99768251,0.5,17/06/2022----Rail Fee,BD1 5HQ
"Department for Business, Innovation and Skills",UK Shared Business Services Ltd,13/07/2022,T&S - Public Transport,Operational Purchasing and Functional Support,Corporate Travel Management (North) Ltd,99768251,55,17/06/2022-Cathays-Swindon-Rail,BD1 5HQ
"Department for Business, Innovation and Skills",UK Shared Business Services Ltd,13/07/2022,T&S - Public Transport,"Risk, Information & Security Compliance",Corporate Travel Management (North) Ltd,99768251,5,12/05/2022----Rail Fee,BD1 5HQ
"Department for Business, Innovation and Skills",UK Shared Business Services Ltd,13/07/2022,T&S - Public Transport,"Risk, Information & Security Compliance",Corporate Travel Management (North) Ltd,99768251,-30,12/05/2022--Newport S.wales-Swindon-Rail,BD1 5HQ
"Department for Business, Innovation and Skills",UK Shared Business Services Ltd,13/07/2022,T&S - Public Transport,Service Improvement and Assurance,Corporate Travel Management (North) Ltd,99768251,0.25,16/06/2022----Rail Fee,BD1 5HQ
"Department for Business, Innovation and Skills",UK Shared Business Services Ltd,13/07/2022,T&S - Public Transport,Service Improvement and Assurance,Corporate Travel Management (North) Ltd,99768251,35,16/06/2022--Newport S.wales-Swindon-Rail,BD1 5HQ
"Department for Business, Innovation and Skills",UK Shared Business Services Ltd,13/07/2022,T&S - Public Transport,Training Services,Corporate Travel Management (North) Ltd,99768251,0.25,07/07/2022----Rail Fee,BD1 5HQ
"Department for Business, Innovation and Skills",UK Shared Business Services Ltd,13/07/2022,T&S - Public Transport,Training Services,Corporate Travel Management (North) Ltd,99768251,158.7,07/07/2022--Swindon (wilts)-London Paddington-Rail,BD1 5HQ
"Department for Business, Innovation and Skills",UK Shared Business Services Ltd,13/07/2022,Contract Staff,Production Services,Proventeq Limited,99768434,"58,182.76",Computer Consumables,RG6 6BU
"Department for Business, Innovation and Skills",UK Shared Business Services Ltd,13/07/2022,T&S - Public Transport,Accounting,Unspecified,99768484,5.9,Public Transport - Taxi Fare (Actuals),HOME
"Department for Business, Innovation and Skills",UK Shared Business Services Ltd,13/07/2022,T&S - Subsistence,Accounting,Unspecified,99768484,15.75,Evening Meal (Actuals),HOME
"Department for Business, Innovation and Skills",UK Shared Business Services Ltd,13/07/2022,T&S - Other Charges,Accounting,Unspecified,99768485,131.64,Home-working Equipment,HOME
"Department for Business, Innovation and Skills",UK Shared Business Services Ltd,13/07/2022,T&S - Other Charges,Project Office,Unspecified,99768487,35,Miscellaneous (Actuals),HOME
"Department for Business, Innovation and Skills",UK Shared Business Services Ltd,14/07/2022,Consultancy Services,Systems Developments,Bytes Software Services Ltd,99760794,"7,560.00",Computer Consumables,KT22 7TW
"Department for Business, Innovation and Skills",UK Shared Business Services Ltd,14/07/2022,Voluntary Deductions,Balance Sheet,Civil Service Benevolent Fund,99762091,18,SSC THIRD PARTY PAYMENTS June2022,SM3 8DY
"Department for Business, Innovation and Skills",UK Shared Business Services Ltd,14/07/2022,Voluntary Deductions,Balance Sheet,Swindon Office Sports and Social Club,99762092,182,SSC THIRD PARTY PAYMENTS June2022,SN2 1EU
"Department for Business, Innovation and Skills",UK Shared Business Services Ltd,14/07/2022,Ees Pension Deductions - JSS,Balance Sheet,RCPS Pension,99762093,"79,709.22",RCPS monthly contributions for SSC June2022,SN2 1UY.
"Department for Business, Innovation and Skills",UK Shared Business Services Ltd,14/07/2022,Ers Pension Deductions - JSS,Balance Sheet,RCPS Pension,99762094,"359,951.70",RCPS monthly contributions for SSC June2022,SN2 1UY.
"Department for Business, Innovation and Skills",UK Shared Business Services Ltd,14/07/2022,Other Pension Deductions,Balance Sheet,Scottish Widows,99762095,100,SSC THIRD PARTY PAYMENTS June2022,EH16 5BU
"Department for Business, Innovation and Skills",UK Shared Business Services Ltd,14/07/2022,Partnership Pension Deductions,Balance Sheet,Scottish Widows,99762096,"3,725.43",SSC THIRD PARTY PAYMENTS June2022,EH16 5BU
"Department for Business, Innovation and Skills",UK Shared Business Services Ltd,14/07/2022,Partnership Pension Deductions,Balance Sheet,Standard Life Assurance Ltd,99762097,391.31,SSC THIRD PARTY PAYMENTS June2022,EH1 2DH
"Department for Business, Innovation and Skills",UK Shared Business Services Ltd,14/07/2022,Partnership Pension Deductions,Balance Sheet,Prudential Plc,99762098,255.61,SSC THIRD PARTY PAYMENTS June2022,EC4R 0HH
"Department for Business, Innovation and Skills",UK Shared Business Services Ltd,14/07/2022,Ees Pension Deductions - MRC,Balance Sheet,JLT Pensions Administration Ltd T/A JLT Employee Benefits,99762099,"3,999.85",SSC THIRD PARTY PAYMENTS June2022,PRINCIPAL SECTI
"Department for Business, Innovation and Skills",UK Shared Business Services Ltd,14/07/2022,Ers Pension Deductions - MRC,Balance Sheet,JLT Pensions Administration Ltd T/A JLT Employee Benefits,99762100,"10,399.61",SSC THIRD PARTY PAYMENTS June2022,PRINCIPAL SECTI
"Department for Business, Innovation and Skills",UK Shared Business Services Ltd,14/07/2022,Voluntary Deductions,Balance Sheet,BHCA (Services) Ltd,99762101,59.15,SSC THIRD PARTY PAYMENTS June2022,NN14 1UE
"Department for Business, Innovation and Skills",UK Shared Business Services Ltd,14/07/2022,Ees Pension Deductions - MyCSP,Balance Sheet,Cabinet Office RM Shared Services,99762102,145.36,UKSBS THIRD PARTY PAYMENTS June 2022,FY5 3TA
"Department for Business, Innovation and Skills",UK Shared Business Services Ltd,14/07/2022,Ers Pension Deductions - MyCSP,Balance Sheet,Cabinet Office RM Shared Services,99762103,722.78,UKSBS THIRD PARTY PAYMENTS June 2022,FY5 3TA
"Department for Business, Innovation and Skills",UK Shared Business Services Ltd,14/07/2022,Computing Consumables,Production Services,Dell Corporation Ltd,99767426,"11,878.80",Computer Consumables,SWAREHOUSEONLY
"Department for Business, Innovation and Skills",UK Shared Business Services Ltd,14/07/2022,Hardware/Software Maintenance,Production Services,Chess Cybersecurity Ltd,99768799,"14,054.40",Computer Consumables,SK9 7JP
"Department for Business, Innovation and Skills",UK Shared Business Services Ltd,14/07/2022,Health & Safety (inc. Medicals & Opticians),People,Swindon Occupational Medical Services Ltd,99769100,"2,868.00",Professional Services,GL7 7AL
"Department for Business, Innovation and Skills",UK Shared Business Services Ltd,15/07/2022,Data Storage & Recovery,Accounting,Restore plc,99753625,967.74,Computing Services,RH1 5DY
"Department for Business, Innovation and Skills",UK Shared Business Services Ltd,15/07/2022,Data Storage & Recovery,Accounting,Restore plc,99766976,967.74,Computing Services,RH1 5DY
"Department for Business, Innovation and Skills",UK Shared Business Services Ltd,15/07/2022,T&S - Mileage,D&I Infrastructure & Network Services,Unspecified,99769663,43.2,Mileage - Car (excl Home to Office),HOME
"Department for Business, Innovation and Skills",UK Shared Business Services Ltd,18/07/2022,GPC Clearing - SSC,Balance Sheet,Unspecified,99768486,-115.95,Unspecified,HOME
"Department for Business, Innovation and Skills",UK Shared Business Services Ltd,18/07/2022,Health & Safety (inc. Medicals & Opticians),Contact Centres,Unspecified,99768486,115.95,GPC_Health & Safety,HOME
"Department for Business, Innovation and Skills",UK Shared Business Services Ltd,18/07/2022,Recruitment Costs,People,Onefix Recruitment Ltd,99768705,360,Recruitment Services,PO3 5EJ
"Department for Business, Innovation and Skills",UK Shared Business Services Ltd,18/07/2022,Computing Consumables,D&I Management,Unspecified,99769375,129.98,GPC_Computer Consumables,HOME
"Department for Business, Innovation and Skills",UK Shared Business Services Ltd,18/07/2022,GPC Clearing - SSC,Balance Sheet,Unspecified,99769375,-129.98,Unspecified,HOME
"Department for Business, Innovation and Skills",UK Shared Business Services Ltd,18/07/2022,Computing Consumables,D&I Management,Unspecified,99769376,160.74,GPC_Computer Consumables,HOME
"Department for Business, Innovation and Skills",UK Shared Business Services Ltd,18/07/2022,GPC Clearing - SSC,Balance Sheet,Unspecified,99769376,-160.74,Unspecified,HOME
"Department for Business, Innovation and Skills",UK Shared Business Services Ltd,18/07/2022,Consultancy Services,D&I Management,Unspecified,99769377,"2,874.00",GPC_Professional Services,HOME
"Department for Business, Innovation and Skills",UK Shared Business Services Ltd,18/07/2022,GPC Clearing - SSC,Balance Sheet,Unspecified,99769377,"-2,874.00",Unspecified,HOME
"Department for Business, Innovation and Skills",UK Shared Business Services Ltd,18/07/2022,Legal & Professional Services,Communications,The Digital Accessibility Centre Ltd,99770361,696,Professional Services,SA10 6FG
"Department for Business, Innovation and Skills",UK Shared Business Services Ltd,18/07/2022,Contract Staff,Corporate Commercial,Alexander Mann Solutions Ltd,99770619,"3,151.56",Recruitment Services,EC2N 3AQ
"Department for Business, Innovation and Skills",UK Shared Business Services Ltd,18/07/2022,T&S - Public Transport,Tier 1 BOE Transactions,Unspecified,99770886,17.4,Public Transport - Taxi Fare (Actuals),HOME
"Department for Business, Innovation and Skills",UK Shared Business Services Ltd,18/07/2022,T&S - Public Transport,Tier 1 BOE Transactions,Unspecified,99770886,35,Public Transport - Train (Actuals),HOME
"Department for Business, Innovation and Skills",UK Shared Business Services Ltd,18/07/2022,Staff Training,HRSD Recoverables,ASK Europe PLC,99770955,504,Training,MK43 0BT
"Department for Business, Innovation and Skills",UK Shared Business Services Ltd,18/07/2022,Contract Staff,SHARP,Alexander Mann Solutions Ltd,99770956,"3,387.66",Recruitment Services,EC2N 3AQ
"Department for Business, Innovation and Skills",UK Shared Business Services Ltd,18/07/2022,Contract Staff,Project Office,Alexander Mann Solutions Ltd,99770966,"1,459.66",Recruitment Services,EC2N 3AQ
"Department for Business, Innovation and Skills",UK Shared Business Services Ltd,19/07/2022,Computer Hardware,Production Services,Dell Corporation Ltd,99735354,"16,028.28",Computing Hardware,SWAREHOUSEONLY
"Department for Business, Innovation and Skills",UK Shared Business Services Ltd,19/07/2022,Recruitment Costs,People,Onefix Recruitment Ltd,99757885,360,Recruitment Services,PO3 5EJ
"Department for Business, Innovation and Skills",UK Shared Business Services Ltd,19/07/2022,International Subscriptions,Procurement Policy & Strategy,Experian Ltd,99771051,534,ZZ-Memberships,NG80 1ZZ
"Department for Business, Innovation and Skills",UK Shared Business Services Ltd,19/07/2022,International Subscriptions,Procurement Policy & Strategy,Experian Ltd,99771059,54,ZZ-Memberships,NG80 1ZZ
"Department for Business, Innovation and Skills",UK Shared Business Services Ltd,19/07/2022,International Subscriptions,Procurement Policy & Strategy,Experian Ltd,99771060,90,ZZ-Memberships,NG80 1ZZ
"Department for Business, Innovation and Skills",UK Shared Business Services Ltd,19/07/2022,International Subscriptions,Procurement Policy & Strategy,Experian Ltd,99771063,78,ZZ-Memberships,NG80 1ZZ
"Department for Business, Innovation and Skills",UK Shared Business Services Ltd,19/07/2022,International Subscriptions,Procurement Policy & Strategy,Experian Ltd,99771064,19.2,ZZ-Memberships,NG80 1ZZ
"Department for Business, Innovation and Skills",UK Shared Business Services Ltd,19/07/2022,International Subscriptions,Procurement Policy & Strategy,Experian Ltd,99771073,19.2,ZZ-Memberships,NG80 1ZZ
"Department for Business, Innovation and Skills",UK Shared Business Services Ltd,19/07/2022,International Subscriptions,Procurement Policy & Strategy,Experian Ltd,99771075,12,ZZ-Memberships,NG80 1ZZ
"Department for Business, Innovation and Skills",UK Shared Business Services Ltd,19/07/2022,International Subscriptions,Procurement Policy & Strategy,Experian Ltd,99771077,12,ZZ-Memberships,NG80 1ZZ
"Department for Business, Innovation and Skills",UK Shared Business Services Ltd,19/07/2022,International Subscriptions,Procurement Policy & Strategy,Experian Ltd,99771079,48,ZZ-Memberships,NG80 1ZZ
"Department for Business, Innovation and Skills",UK Shared Business Services Ltd,19/07/2022,International Subscriptions,Procurement Policy & Strategy,Experian Ltd,99771082,48,ZZ-Memberships,NG80 1ZZ
"Department for Business, Innovation and Skills",UK Shared Business Services Ltd,19/07/2022,International Subscriptions,Procurement Policy & Strategy,Experian Ltd,99771085,12,ZZ-Memberships,NG80 1ZZ
"Department for Business, Innovation and Skills",UK Shared Business Services Ltd,19/07/2022,Agency Staff,Corporate Finance,C and D Group Ltd t/a Thrive Group,99771721,740.42,Recruitment Services,SN3 4UQ
"Department for Business, Innovation and Skills",UK Shared Business Services Ltd,19/07/2022,T&S - Subsistence,"D&I Digital, Data & Analytics",Unspecified,99771881,44.1,Evening Meal (Actuals),HOME
"Department for Business, Innovation and Skills",UK Shared Business Services Ltd,19/07/2022,T&S - Subsistence,"D&I Digital, Data & Analytics",Unspecified,99771881,30.61,Lunch (Actuals),HOME
"Department for Business, Innovation and Skills",UK Shared Business Services Ltd,19/07/2022,T&S - Parking Tolls Congestion Charges,Operational Excellence,Unspecified,99771882,10,"Parking, Tolls, Congestion Charge",HOME
"Department for Business, Innovation and Skills",UK Shared Business Services Ltd,19/07/2022,T&S - Parking Tolls Congestion Charges,Operational Excellence,Unspecified,99771883,10,"Parking, Tolls, Congestion Charge",HOME
"Department for Business, Innovation and Skills",UK Shared Business Services Ltd,19/07/2022,T&S - Parking Tolls Congestion Charges,Operational Excellence,Unspecified,99771884,10,"Parking, Tolls, Congestion Charge",HOME
"Department for Business, Innovation and Skills",UK Shared Business Services Ltd,19/07/2022,Computer Hardware,Production Services,Dell Corporation Ltd,99772035,-43.42,Computing Hardware,SWAREHOUSEONLY
"Department for Business, Innovation and Skills",UK Shared Business Services Ltd,20/07/2022,Conferences & Seminars,Production Services,Live Illustration Ltd,99758254,"1,500.00",Conference & Venues,OX3 7AQ
"Department for Business, Innovation and Skills",UK Shared Business Services Ltd,20/07/2022,Agency Staff,Corporate Finance,C and D Group Ltd t/a Thrive Group,99760394,759.08,Recruitment Services,SN3 4UQ
"Department for Business, Innovation and Skills",UK Shared Business Services Ltd,20/07/2022,Conferences & Seminars,Production Services,Great Western Hotel (Swindon) Ltd,99769733,"1,250.00",Conference & Venues,SN1 1DH
"Department for Business, Innovation and Skills",UK Shared Business Services Ltd,20/07/2022,Contract Staff,Production Services,Alexander Mann Solutions Ltd,99770958,"3,465.30",Recruitment Services,EC2N 3AQ
"Department for Business, Innovation and Skills",UK Shared Business Services Ltd,20/07/2022,T&S - Mileage,Partnership Management,Unspecified,99771420,64.75,Mileage - Car Allowance,HOME
"Department for Business, Innovation and Skills",UK Shared Business Services Ltd,20/07/2022,T&S - Parking Tolls Congestion Charges,Partnership Management,Unspecified,99771420,22.7,"Parking, Tolls, Congestion Charge",HOME
"Department for Business, Innovation and Skills",UK Shared Business Services Ltd,20/07/2022,T&S - Subsistence,Partnership Management,Unspecified,99771420,25,Evening Meal (Actuals),HOME
"Department for Business, Innovation and Skills",UK Shared Business Services Ltd,20/07/2022,T&S - Subsistence,Partnership Management,Unspecified,99771420,18.15,Lunch (Actuals),HOME
"Department for Business, Innovation and Skills",UK Shared Business Services Ltd,21/07/2022,Staff Training,People,Coleg Gwent,99757911,"1,782.00",Training,NP15 1XJ
"Department for Business, Innovation and Skills",UK Shared Business Services Ltd,21/07/2022,Computer Software Licences,Production Services,Softcat plc,99770309,"7,769.75",Computer Consumables,SL7 1LW
"Department for Business, Innovation and Skills",UK Shared Business Services Ltd,21/07/2022,Computer Software Licences,Production Services,Softcat plc,99770309,"32,314.11",Computer Consumables,SL7 1LW
"Department for Business, Innovation and Skills",UK Shared Business Services Ltd,21/07/2022,Computer Software Licences,Production Services,Softcat plc,99770309,"19,484.22",Computer Consumables,SL7 1LW
"Department for Business, Innovation and Skills",UK Shared Business Services Ltd,21/07/2022,Computer Software Licences,Production Services,Softcat plc,99770310,"4,806.77",Computer Consumables,SL7 1LW
"Department for Business, Innovation and Skills",UK Shared Business Services Ltd,21/07/2022,Computer Software Licences,Production Services,Softcat plc,99770310,"30,442.94",Computer Consumables,SL7 1LW
"Department for Business, Innovation and Skills",UK Shared Business Services Ltd,21/07/2022,Recruitment Costs,Production Services,Michael Page International Recruitment Limited T/A Page Personnel,99771297,"3,420.00",Recruitment Services,SL1 1QP
"Department for Business, Innovation and Skills",UK Shared Business Services Ltd,21/07/2022,Health & Safety (inc. Medicals & Opticians),People,Benenden Healthcare Society,99772770,"20,087.20",Professional Services,YO26 4GG
"Department for Business, Innovation and Skills",UK Shared Business Services Ltd,21/07/2022,Health & Safety (inc. Medicals & Opticians),Resourcing,Unspecified,99772816,25,Medical Fees & Vaccinations (Actuals),HOME
"Department for Business, Innovation and Skills",UK Shared Business Services Ltd,22/07/2022,Conferences & Seminars,D&I Management,Melksham Town Football Club Ltd,99773045,210.6,Conference & Venues,SN12 7GU
"Department for Business, Innovation and Skills",UK Shared Business Services Ltd,22/07/2022,Conferences & Seminars,D&I Management,Melksham Town Football Club Ltd,99773049,219.48,Conference & Venues,SN12 7GU
"Department for Business, Innovation and Skills",UK Shared Business Services Ltd,22/07/2022,Conferences & Seminars,D&I Management,Melksham Town Football Club Ltd,99773049,21.12,Conference & Venues,SN12 7GU
"Department for Business, Innovation and Skills",UK Shared Business Services Ltd,22/07/2022,Recruitment Costs,Corporate HR,Agenda Resource Management Ltd,99773147,210.13,Professional Services,HU12 8YJ
"Department for Business, Innovation and Skills",UK Shared Business Services Ltd,22/07/2022,Contract Staff,SHARP,Alexander Mann Solutions Ltd,99773368,"3,387.66",Recruitment Services,EC2N 3AQ
"Department for Business, Innovation and Skills",UK Shared Business Services Ltd,22/07/2022,Contract Staff,Production Services,Alexander Mann Solutions Ltd,99773378,"2,463.70",Recruitment Services,EC2N 3AQ
"Department for Business, Innovation and Skills",UK Shared Business Services Ltd,22/07/2022,Legal & Professional Services,Finance Operations 2,Legal Recoveries and Collections Ltd,99773725,3,Professional Services,NG1 3BF
"Department for Business, Innovation and Skills",UK Shared Business Services Ltd,22/07/2022,T&S - Subsistence,Contact Centres,Unspecified,99773870,23.39,Evening Meal (Actuals),HOME
"Department for Business, Innovation and Skills",UK Shared Business Services Ltd,22/07/2022,T&S - Subsistence,Contact Centres,Unspecified,99773870,12.3,Lunch (Actuals),HOME
"Department for Business, Innovation and Skills",UK Shared Business Services Ltd,22/07/2022,T&S - Vehicle Hire,Contact Centres,Unspecified,99773870,86.88,Vehicle Hire/Rental/Fuel (Actuals),HOME
"Department for Business, Innovation and Skills",UK Shared Business Services Ltd,22/07/2022,T&S - Subsistence,Contact Centres,Unspecified,99773871,9.62,Lunch (Actuals),HOME
"Department for Business, Innovation and Skills",UK Shared Business Services Ltd,22/07/2022,T&S - Vehicle Hire,Contact Centres,Unspecified,99773871,60.12,Vehicle Hire/Rental/Fuel (Actuals),HOME
"Department for Business, Innovation and Skills",UK Shared Business Services Ltd,25/07/2022,Recruitment Costs,Production Services,Skillsbay Ltd,99773322,"7,560.00",Recruitment Services,SW6 3JD
"Department for Business, Innovation and Skills",UK Shared Business Services Ltd,25/07/2022,GPC Clearing - SSC,Balance Sheet,Unspecified,99774287,-230.4,Unspecified,HOME
"Department for Business, Innovation and Skills",UK Shared Business Services Ltd,25/07/2022,Telecoms - Land Line Rental,D&I Management,Unspecified,99774287,230.4,GPC_Telephone Rental and Line Charges,HOME
"Department for Business, Innovation and Skills",UK Shared Business Services Ltd,25/07/2022,UK - Professional Memberships & Subscriptions,People,Unspecified,99774289,168,Professional Subscriptions (Actuals),HOME
"Department for Business, Innovation and Skills",UK Shared Business Services Ltd,26/07/2022,3rd party IT Services,SHARP,IBM United Kingdom Ltd,99760383,"46,724.16",Computer Consumables,PO6 3AU
"Department for Business, Innovation and Skills",UK Shared Business Services Ltd,26/07/2022,3rd party IT Services,SHARP,IBM United Kingdom Ltd,99760386,"388,715.16",Computer Consumables,PO6 3AU
"Department for Business, Innovation and Skills",UK Shared Business Services Ltd,26/07/2022,Contract Staff,People,Alexander Mann Solutions Ltd,99770962,"3,848.22",Recruitment Services,EC2N 3AQ
"Department for Business, Innovation and Skills",UK Shared Business Services Ltd,26/07/2022,Contract Staff,People,Alexander Mann Solutions Ltd,99773347,"3,078.58",Recruitment Services,EC2N 3AQ
"Department for Business, Innovation and Skills",UK Shared Business Services Ltd,26/07/2022,Contract Staff,Production Services,Alexander Mann Solutions Ltd,99773356,"3,465.30",Recruitment Services,EC2N 3AQ
"Department for Business, Innovation and Skills",UK Shared Business Services Ltd,26/07/2022,Contract Staff,Production Services,Alexander Mann Solutions Ltd,99774029,"7,415.86",Recruitment Services,EC2N 3AQ
"Department for Business, Innovation and Skills",UK Shared Business Services Ltd,26/07/2022,3rd party IT Services,Production Services,Phoenix Software Ltd,99774585,"44,208.00",Computer Consumables,YO42 1NS
"Department for Business, Innovation and Skills",UK Shared Business Services Ltd,26/07/2022,T&S - Other Charges,Training Services,Unspecified,99774619,137.98,Home-working Equipment,HOME
"Department for Business, Innovation and Skills",UK Shared Business Services Ltd,26/07/2022,Conferences & Seminars,"Risk, Information & Security Compliance",Unspecified,99774620,181.73,Conference/Course Fees (Actuals),HOME
"Department for Business, Innovation and Skills",UK Shared Business Services Ltd,26/07/2022,UK - Professional Memberships & Subscriptions,"Risk, Information & Security Compliance",Unspecified,99774620,170,Professional Subscriptions (Actuals),HOME
"Department for Business, Innovation and Skills",UK Shared Business Services Ltd,26/07/2022,Contract Staff,Production Services,Hays Specialist Recruitment Ltd,99774772,"4,469.76",Recruitment Services,KT3 4QF
"Department for Business, Innovation and Skills",UK Shared Business Services Ltd,26/07/2022,Contract Staff,Production Services,Hays Specialist Recruitment Ltd,99774784,"5,028.48",Recruitment Services,KT3 4QF
"Department for Business, Innovation and Skills",UK Shared Business Services Ltd,27/07/2022,Legal & Professional Services,SHARP,DAC Beachcroft LLP,99775877,"10,156.92",Professional Services,BS1 9HS
"Department for Business, Innovation and Skills",UK Shared Business Services Ltd,28/07/2022,T&S - Other Charges,Professional Services,Unspecified,99769378,166.1,Home-working Equipment,HOME
"Department for Business, Innovation and Skills",UK Shared Business Services Ltd,28/07/2022,T&S - Other Charges,D&I Architecture & Design,Unspecified,99774990,2.79,Miscellaneous (Actuals),HOME
"Department for Business, Innovation and Skills",UK Shared Business Services Ltd,28/07/2022,T&S - Mileage,D&I Infrastructure & Network Services,Unspecified,99775315,67.5,Mileage - Car (excl Home to Office),HOME
"Department for Business, Innovation and Skills",UK Shared Business Services Ltd,28/07/2022,T&S - Public Transport,Partnership Management,Unspecified,99775316,7,Public Transport - Bus (Actuals),HOME
"Department for Business, Innovation and Skills",UK Shared Business Services Ltd,28/07/2022,T&S - Public Transport,Partnership Management,Unspecified,99775316,18,Public Transport - Taxi Fare (Actuals),HOME
"Department for Business, Innovation and Skills",UK Shared Business Services Ltd,28/07/2022,T&S - Subsistence,Partnership Management,Unspecified,99775316,9.9,Lunch (Actuals),HOME
"Department for Business, Innovation and Skills",UK Shared Business Services Ltd,28/07/2022,T&S - Parking Tolls Congestion Charges,D&I Digital,Unspecified,99775317,14,"Parking, Tolls, Congestion Charge",HOME
"Department for Business, Innovation and Skills",UK Shared Business Services Ltd,28/07/2022,Staff Training,HRSD Recoverables,ASK Europe PLC,99775942,840,Training,MK43 0BT
"Department for Business, Innovation and Skills",UK Shared Business Services Ltd,29/07/2022,Staff Training,HRSD Recoverables,StayAhead Training Ltd,99761000,"1,620.00",Training,SE6 3AS
"Department for Business, Innovation and Skills",UK Shared Business Services Ltd,29/07/2022,Consultancy Services,"Risk, Information & Security Compliance",Risk Evolves Ltd,99762549,"4,080.00",Consultancy Services,CV31 1XT
"Department for Business, Innovation and Skills",UK Shared Business Services Ltd,29/07/2022,Health & Safety (inc. Medicals & Opticians),Training Services,Unspecified,99776226,80,Medical Fees & Vaccinations (Actuals),HOME
"Department for Business, Innovation and Skills",UK Shared Business Services Ltd,29/07/2022,IT Cloud Services,Production Services,FlyForm Ltd,99776958,"4,999.20",Computing Software,CF10 3AG
"Department for Business, Innovation and Skills",UK Shared Business Services Ltd,26/07/2022,Bank Charges,Corporate Finance,,,783,Bank Charges,
"Department for Business, Innovation and Skills",UK Shared Business Services Ltd,29/07/2022,Bank Charges,Corporate Finance,,,25.04,Bank Charges,
